bitfinex-derivatives/quotes_BNBF0:USTF0_20250101
["timestamp","ask_amount","ask_price","bid_price","bid_amount"]
[1735770930898,0.89334286,707.73,707.59,1.05764121]
[1735770931203,0.89334286,707.72,707.59,1.05764121]
[1735770931404,0.89334286,707.71,707.59,1.05764121]
[1735770931604,0.89334286,707.7,707.59,1.05764121]
[1735770931806,0.89334286,707.69,707.59,1.05764121]
[1735770931999,0.89334286,707.68,707.59,1.05764121]
[1735770932201,0.89334286,707.67,707.59,1.05764121]
[1735770932405,0.89334286,707.66,707.59,1.05764121]
[1735770932706,1.47553495,708.15,707.59,1.05764121]
[1735770932902,0.89328837,708.14,707.59,1.05764121]
[1735770933101,0.89328837,708.13,707.59,1.05764121]
[1735770933305,0.89328837,708.12,707.59,1.05764121]
[1735770933505,0.89328837,708.11,707.59,1.05764121]
[1735770933810,0.89328837,708.1,707.59,1.05764121]
[1735770934106,1.47553495,708.15,707.58,1.05764121]
[1735770934107,0.89328837,708.09,707.58,1.05764121]
[1735770934308,0.89328837,708.08,707.58,1.05764121]
[1735770934507,0.89328837,708.07,707.58,1.05764121]
[1735770934711,0.89328837,708.06,707.58,1.05764121]
[1735770934907,0.89328837,708.05,707.58,1.05764121]
[1735770935108,0.89328837,708.04,707.58,1.05764121]
[1735770935402,0.89328837,708.03,707.58,1.05764121]
[1735770935607,1.47553495,708.15,707.58,1.05764121]
[1735770935608,0.89328837,708.02,707.58,1.05764121]
[1735770935805,1.47553495,708.15,707.58,1.05764121]
[1735770935806,0.89328837,708.01,707.58,1.05764121]
[1735770936007,0.89328837,708.0,707.58,1.05764121]
[1735770936208,0.89328837,707.99,707.58,1.05764121]
[1735770936404,0.89328837,707.98,707.58,1.05764121]
[1735770936605,0.89328837,707.97,707.58,1.05764121]
[1735770936808,0.89328837,707.96,707.58,1.05764121]
[1735770937002,0.89328837,707.95,707.58,1.05764121]
[1735770937201,0.89328837,707.94,707.58,1.05764121]
[1735770937404,0.89328837,707.93,707.58,1.05764121]
[1735770937605,0.89328837,707.92,707.58,1.05764121]
[1735770937802,0.89328837,707.91,707.58,1.05764121]
[1735770938109,0.89328837,707.91,707.03,2.15935081]
[1735770938110,0.89328837,707.9,707.56,1.05764121]
[1735770938408,0.89320867,707.89,707.56,1.05764121]
[1735770938709,0.89320867,707.88,707.56,1.05764121]
[1735770938907,0.89320867,707.88,707.02,2.15935081]
[1735770938908,0.8931707,707.87,707.55,1.05764121]
[1735770939208,0.8931707,707.86,707.55,1.05764121]
[1735770939408,0.8931707,707.85,707.55,1.05764121]
[1735770939708,0.8931707,707.84,707.55,1.05764121]
[1735770939908,0.8931707,707.83,707.57,1.05764121]
[1735770940110,0.8931707,707.82,707.57,1.05764121]
[1735770940304,0.702,707.95,707.57,1.05764121]
[1735770940305,0.8931707,707.81,707.57,1.05764121]
[1735770940507,0.89312223,707.8,707.57,1.05764121]
[1735770940710,0.89312223,707.79,707.58,1.05764121]
[1735770941008,0.89312223,707.78,707.58,1.05764121]
[1735770941210,0.702,707.95,707.58,1.05764121]
[1735770941409,0.89312,707.94,707.58,1.05764121]
[1735770941609,0.89312,707.93,707.58,1.05764121]
[1735770941811,0.89312,707.92,707.58,1.05764121]
[1735770942011,0.89312,707.91,707.57,1.05764121]
[1735770942311,0.89312,707.9,707.57,1.05764121]
[1735770942509,0.89312,707.89,707.57,1.05764121]
[1735770942704,0.89312,707.88,707.57,1.05764121]
[1735770942909,0.89312,707.87,707.57,1.05764121]
[1735770943108,0.89312,707.86,707.57,1.05764121]
[1735770943310,0.702,707.95,707.57,1.05764121]
[1735770943506,0.89307719,707.94,707.57,1.05764121]
[1735770943709,0.89307719,707.93,707.57,1.05764121]
[1735770943908,0.89307719,707.92,707.57,1.05764121]
[1735770944109,0.89307719,707.91,707.57,1.05764121]
[1735770944311,0.89308207,707.9,707.57,1.05764121]
[1735770944512,0.89308207,707.89,707.57,1.05764121]
[1735770944705,0.89308207,707.88,707.57,1.05764121]
[1735770944906,0.89308207,707.87,707.57,1.05764121]
[1735770945105,0.89308207,707.86,707.57,1.05764121]
[1735770945309,0.89308207,707.85,707.57,1.05764121]
[1735770945508,0.89308207,707.84,707.56,1.05764121]
[1735770945705,0.89308207,707.83,707.56,1.05764121]
[1735770945906,0.89308207,707.82,707.56,1.05764121]
[1735770946110,0.89308207,707.81,707.56,1.05764121]
[1735770946310,0.89308207,707.8,707.56,1.05764121]
[1735770946612,0.89308207,707.79,707.56,1.05764121]
[1735770946813,0.89308207,707.78,707.57,1.05764121]
[1735770947016,0.702,707.95,707.57,1.05764121]
[1735770947208,0.89312949,707.94,707.57,1.05764121]
[1735770947404,0.89312949,707.93,707.57,1.05764121]
[1735770947608,0.89312949,707.93,707.04,2.15935081]
[1735770947609,0.89312949,707.92,707.05,1.05764121]
[1735770947810,0.89312949,707.91,707.05,1.05764121]
[1735770948010,0.89312949,707.9,707.05,1.05764121]
[1735770948212,0.89312949,707.89,707.05,1.05764121]
[1735770948411,0.89312949,707.88,707.05,1.05764121]
[1735770948709,0.89312949,707.87,707.05,1.05764121]
[1735770948911,0.89312949,707.86,707.05,1.05764121]
[1735770949108,0.89312949,707.85,706.95,1.05764121]
[1735770949309,0.89234467,707.84,706.95,1.05764121]
[1735770949613,0.89234467,707.83,706.95,1.05764121]
[1735770949814,0.702,707.95,706.95,1.05764121]
[1735770949815,0.89234467,707.82,706.95,1.05764121]
[1735770950008,0.89233681,707.81,706.95,1.05764121]
[1735770950211,0.89233681,707.8,706.95,1.05764121]
[1735770950509,0.89233681,707.79,706.9,1.05764121]
[1735770950710,0.89233681,707.78,706.9,1.05764121]
[1735770950907,0.89233681,707.77,706.9,1.05764121]
[1735770951107,0.89233681,707.76,706.9,1.05764121]
[1735770951311,0.89233681,707.75,706.9,1.05764121]
[1735770951513,0.702,707.95,706.88,1.05764121]
[1735770951514,0.89233681,707.74,706.88,1.05764121]
[1735770951713,0.89233681,707.73,706.88,1.05764121]
[1735770951908,0.89233681,707.72,706.88,1.05764121]
[1735770952108,0.89233681,707.71,706.88,1.05764121]
[1735770952313,0.89233681,707.7,706.88,1.05764121]
[1735770952613,0.89233681,707.69,706.88,1.05764121]
[1735770952815,0.89179773,707.68,707.09,1.05764121]
[1735770953011,0.89179773,707.67,707.09,1.05764121]
[1735770953217,0.89179773,707.66,707.09,1.05764121]
[1735770953518,0.89179773,707.65,707.09,1.05764121]
[1735770953722,0.89179773,707.64,707.08,1.05764121]
[1735770953920,0.89179773,707.63,707.08,1.05764121]
[1735770954218,0.89179773,707.62,707.08,1.05764121]
[1735770954419,0.89179773,707.61,707.08,1.05764121]
[1735770954614,0.89179773,707.6,707.06,1.05764121]
[1735770954818,0.89179773,707.59,707.06,1.05764121]
[1735770955018,0.89179773,707.58,707.06,1.05764121]
[1735770955218,1.47561837,708.0,707.06,1.05764121]
[1735770955219,0.89179773,707.57,707.06,1.05764121]
[1735770955420,0.702,707.56,707.06,1.05764121]
[1735770955920,0.702,707.56,707.05,1.05764121]
[1735770957220,0.702,707.56,707.04,1.05764121]
[1735770958020,0.702,707.56,707.03,1.05764121]
[1735770959924,0.702,707.56,707.02,1.05764121]
[1735770965828,0.702,707.56,707.25,1.05764121]
[1735770966429,1.47603041,707.99,707.25,1.05764121]
[1735770966728,0.89111624,707.98,707.25,1.05764121]
[1735770966925,1.47603041,707.99,707.25,1.05764121]
[1735770967132,1.47603041,707.99,707.17,1.05764121]
[1735770967133,0.89111327,707.98,707.17,1.05764121]
[1735770967431,0.89111327,707.97,707.17,1.05764121]
[1735770967724,1.59211327,707.96,707.17,1.05764121]
[1735770967924,0.89111327,707.95,707.17,1.05764121]
[1735770968123,0.89111327,707.94,707.17,1.05764121]
[1735770968327,0.89111327,707.93,707.17,1.05764121]
[1735770968629,0.89111327,707.92,707.17,1.05764121]
[1735770968831,0.89111327,707.91,707.17,1.05764121]
[1735770969128,0.89111327,707.9,707.17,1.05764121]
[1735770969330,0.89111327,707.89,707.17,1.05764121]
[1735770969530,0.89111327,707.88,707.17,1.05764121]
[1735770969827,0.89111327,707.87,707.17,1.05764121]
[1735770970025,0.89111327,707.86,707.17,1.05764121]
[1735770970226,0.701,707.96,707.17,1.05764121]
[1735770970227,0.89111327,707.85,707.17,1.05764121]
[1735770970424,0.89111327,707.84,707.17,1.05764121]
[1735770970629,0.89111327,707.83,707.13,1.05764121]
[1735770970828,0.89111327,707.82,707.13,1.05764121]
[1735770971028,0.89111327,707.81,707.13,1.05764121]
[1735770971226,0.89111327,707.8,707.13,1.05764121]
[1735770971431,0.89111327,707.79,707.13,1.05764121]
[1735770971624,0.701,707.96,707.13,1.05764121]
[1735770971625,0.89111327,707.78,707.13,1.05764121]
[1735770971824,0.89111327,707.77,707.14,1.05764121]
[1735770972030,0.89111327,707.76,707.14,1.05764121]
[1735770972326,0.89111327,707.75,707.14,1.05764121]
[1735770972527,0.89111327,707.74,707.14,1.05764121]
[1735770972723,1.47595738,707.89,707.14,1.05764121]
[1735770972930,0.89062832,707.88,707.14,1.05764121]
[1735770973130,0.89062832,707.87,707.14,1.05764121]
[1735770973426,0.89064388,707.86,707.14,1.05764121]
[1735770973631,0.89064388,707.85,707.14,1.05764121]
[1735770973930,0.89064388,707.84,707.14,1.05764121]
[1735770974230,0.89064388,707.83,707.14,1.05764121]
[1735770974433,0.89064388,707.82,707.14,1.05764121]
[1735770974624,0.89064388,707.81,707.14,1.05764121]
[1735770974830,0.89064388,707.8,707.15,1.05764121]
[1735770975131,0.89064388,707.79,707.15,1.05764121]
[1735770975331,0.89064388,707.78,707.15,1.05764121]
[1735770975524,0.89064388,707.77,707.15,1.05764121]
[1735770975728,0.89064388,707.76,707.15,1.05764121]
[1735770975928,0.89064388,707.75,707.15,1.05764121]
[1735770976127,0.89064388,707.74,707.13,1.05764121]
[1735770976329,0.89064388,707.73,707.13,1.05764121]
[1735770976532,0.89064388,707.72,707.13,1.05764121]
[1735770976728,0.89064388,707.71,707.13,1.05764121]
[1735770976929,0.89064388,707.7,707.13,1.05764121]
[1735770977131,0.89064388,707.69,707.2,1.05764121]
[1735770977326,0.89064388,707.68,707.2,1.05764121]
[1735770977531,0.89064388,707.67,707.2,1.05764121]
[1735770977732,0.89064388,707.66,707.2,1.05764121]
[1735770977933,0.89064388,707.65,707.2,1.05764121]
[1735770978127,0.89064388,707.64,707.22,1.05764121]
[1735770978432,0.89064388,707.63,707.22,1.05764121]
[1735770978632,0.89064388,707.62,707.22,1.05764121]
[1735770978834,0.89064388,707.61,707.22,1.05764121]
[1735770979134,0.89064388,707.6,707.24,1.05764121]
[1735770979334,0.89064388,707.59,707.24,1.05764121]
[1735770979535,0.89064388,707.58,707.24,1.05764121]
[1735770979735,0.89064388,707.57,707.24,1.05764121]
[1735770980036,1.47595738,707.89,707.24,1.05764121]
[1735770980234,0.8901329,707.88,707.25,1.05764121]
[1735770980435,0.8901329,707.87,707.25,1.05764121]
[1735770980634,0.8901329,707.86,707.25,1.05764121]
[1735770980834,0.8901329,707.85,707.25,1.05764121]
[1735770981037,0.8901329,707.84,707.27,1.05764121]
[1735770981234,0.8901329,707.83,707.27,1.05764121]
[1735770981430,0.8901329,707.82,707.27,1.05764121]
[1735770981628,1.47595738,707.89,707.27,1.05764121]
[1735770981629,0.89011306,707.81,707.27,1.05764121]
[1735770981830,0.89011306,707.8,707.27,1.05764121]
[1735770982037,1.47595738,707.89,707.27,1.05764121]
[1735770982333,1.47595738,707.89,706.68,2.15935081]
[1735770982334,0.89009519,707.88,707.3,1.05764121]
[1735770982528,0.89009519,707.87,707.3,1.05764121]
[1735770982732,0.89009519,707.86,707.3,1.05764121]
[1735770982933,0.89009519,707.85,707.3,1.05764121]
[1735770983130,0.89009519,707.84,707.3,1.05764121]
[1735770983437,0.89009519,707.83,707.29,1.05764121]
[1735770983638,0.89009519,707.82,707.29,1.05764121]
[1735770983838,0.89009519,707.81,707.29,1.05764121]
[1735770984137,0.89009519,707.8,707.29,1.05764121]
[1735770984437,0.89009519,707.79,707.29,1.05764121]
[1735770984637,0.89009519,707.78,707.29,1.05764121]
[1735770984838,0.89009519,707.77,707.21,1.05764121]
[1735770985039,0.89009519,707.76,707.21,1.05764121]
[1735770985233,0.89009519,707.75,707.21,1.05764121]
[1735770985438,0.89009519,707.74,707.21,1.05764121]
[1735770985738,0.89009519,707.73,707.21,1.05764121]
[1735770985934,0.89009519,707.72,707.21,1.05764121]
[1735770986136,0.89009519,707.71,707.21,1.05764121]
[1735770986333,0.89009519,707.7,707.21,1.05764121]
[1735770986534,0.89009519,707.69,707.21,1.05764121]
[1735770986738,0.89009519,707.68,707.21,1.05764121]
[1735770987037,0.89009519,707.67,707.22,1.05764121]
[1735770987234,1.47595738,707.89,707.22,1.05764121]
[1735770987235,0.89009519,707.66,707.22,1.05764121]
[1735770987435,0.89009519,707.65,707.22,1.05764121]
[1735770987639,0.89009519,707.64,707.22,1.05764121]
[1735770987842,0.89009519,707.63,707.22,1.05764121]
[1735770988143,0.89009519,707.62,707.22,1.05764121]
[1735770988342,0.89009519,707.61,707.22,1.05764121]
[1735770988542,0.89009519,707.6,707.22,1.05764121]
[1735770988748,0.89009519,707.59,707.23,1.05764121]
[1735770989044,1.47595738,707.89,707.23,1.05764121]
[1735770989045,0.89009519,707.58,707.23,1.05764121]
[1735770989244,0.89009519,707.57,707.23,1.05764121]
[1735770989444,1.47595738,707.89,707.23,1.05764121]
[1735770989747,0.89018103,707.88,707.23,1.05764121]
[1735770989945,0.89018103,707.87,707.23,1.05764121]
[1735770990245,0.89018103,707.86,707.23,1.05764121]
[1735770990437,0.89018103,707.85,707.23,1.05764121]
[1735770990639,0.89018103,707.84,707.23,1.05764121]
[1735770990839,0.89018103,707.83,707.23,1.05764121]
[1735770991146,0.89018103,707.82,707.23,1.05764121]
[1735770991345,0.89018103,707.81,707.23,1.05764121]
[1735770991545,0.89018103,707.8,707.23,1.05764121]
[1735770991748,0.89018103,707.79,707.23,1.05764121]
[1735770991945,0.89018103,707.78,707.23,1.05764121]
[1735770992145,1.47595738,707.89,707.23,1.05764121]
[1735770992348,0.89024844,707.88,707.23,1.05764121]
[1735770992541,0.89024844,707.87,707.23,1.05764121]
[1735770992745,0.89024844,707.86,707.23,1.05764121]
[1735770992941,0.89024844,707.85,707.23,1.05764121]
[1735770993143,1.47595738,707.89,707.23,1.05764121]
[1735770993343,0.89031804,707.88,707.23,1.05764121]
[1735770993539,1.47595738,707.89,707.23,1.05764121]
[1735770993540,0.89031804,707.87,707.23,1.05764121]
[1735770993747,0.89031804,707.86,707.23,1.05764121]
[1735770993947,0.89031804,707.85,707.23,1.05764121]
[1735770994147,0.89031804,707.84,707.23,1.05764121]
[1735770994350,0.89031804,707.83,707.23,1.05764121]
[1735770994549,0.89031804,707.82,707.23,1.05764121]
[1735770994748,0.89031804,707.81,707.23,1.05764121]
[1735770994948,0.701,707.86,706.68,0.73297585]
[1735770994949,0.89031804,707.8,707.35,1.05764121]
[1735770995247,0.89031804,707.79,707.35,1.05764121]
[1735770995547,0.89031804,707.78,707.35,1.05764121]
[1735770995747,0.89031804,707.77,707.35,1.05764121]
[1735770995949,0.701,707.86,707.35,1.05764121]
[1735770996142,0.89060473,707.85,707.35,1.05764121]
[1735770996346,0.89060473,707.84,707.35,1.05764121]
[1735770996541,0.89060473,707.83,707.35,1.05764121]
[1735770996745,0.89060473,707.82,707.35,1.05764121]
[1735770996950,0.89060473,707.81,707.32,1.05764121]
[1735770997251,0.89060473,707.8,707.32,1.05764121]
[1735770997549,0.89060473,707.79,707.32,1.05764121]
[1735770997749,0.89060473,707.78,707.32,1.05764121]
[1735770997948,0.89060473,707.77,707.32,1.05764121]
[1735770998145,0.89060473,707.76,707.32,1.05764121]
[1735770998345,0.89060473,707.75,707.35,1.05764121]
[1735770998549,0.701,707.86,707.35,1.05764121]
[1735770998550,0.89060473,707.74,707.35,1.05764121]
[1735770998751,0.89060473,707.73,707.35,1.05764121]
[1735770998946,0.89060473,707.72,707.35,1.05764121]
[1735770999245,0.701,707.86,707.35,1.05764121]
[1735770999451,0.89092711,707.85,707.35,1.05764121]
[1735770999647,0.89092711,707.84,707.35,1.05764121]
[1735770999846,0.89092711,707.83,707.37,1.05764121]
[1735771000048,0.89092711,707.82,707.37,1.05764121]
[1735771000251,0.89092711,707.81,707.37,1.05764121]
[1735771000446,0.89092711,707.8,707.37,1.05764121]
[1735771000649,0.89092711,707.79,707.37,1.05764121]
[1735771000952,0.701,707.86,707.37,1.05764121]
[1735771001151,0.89112605,707.85,707.37,1.05764121]
[1735771001351,0.89112605,707.84,707.37,1.05764121]
[1735771001551,0.89112605,707.83,707.37,1.05764121]
[1735771001752,0.89112605,707.83,706.84,2.15935081]
[1735771001753,0.89125718,707.82,707.36,1.05764121]
[1735771001947,0.89125718,707.81,707.36,1.05764121]
[1735771002152,0.89125718,707.8,707.36,1.05764121]
[1735771002348,0.701,707.86,707.36,1.05764121]
[1735771002349,0.89125718,707.79,707.36,1.05764121]
[1735771002548,0.89125718,707.78,707.36,1.05764121]
[1735771002755,0.89125718,707.77,707.36,1.05764121]
[1735771002950,0.89125718,707.76,707.36,1.05764121]
[1735771003157,0.89125718,707.75,707.36,1.05764121]
[1735771003448,0.89125718,707.74,707.36,1.05764121]
[1735771003650,0.89165232,707.73,707.36,1.05764121]
[1735771003850,0.89165232,707.72,707.37,1.05764121]
[1735771004055,0.89165232,707.71,707.37,1.05764121]
[1735771004355,0.701,707.86,707.37,1.05764121]
[1735771004356,0.89165232,707.7,707.37,1.05764121]
[1735771004557,0.89165232,707.69,707.37,1.05764121]
[1735771004755,0.89188295,707.68,707.37,1.05764121]
[1735771004956,0.89188295,707.67,707.37,1.05764121]
[1735771005155,0.89188295,707.66,707.37,1.05764121]
[1735771005356,0.89188295,707.65,707.37,1.05764121]
[1735771005557,0.89188295,707.64,707.37,1.05764121]
[1735771005754,0.89188295,707.63,707.37,1.05764121]
[1735771005949,0.89188295,707.62,707.37,1.05764121]
[1735771006160,0.89188295,707.61,707.37,1.05764121]
[1735771006457,0.89188295,707.6,707.37,1.05764121]
[1735771006658,0.89188295,707.59,707.36,1.05764121]
[1735771006858,0.89188295,707.58,707.36,1.05764121]
[1735771007157,0.89188295,707.57,707.36,1.05764121]
[1735771007357,0.89188295,707.56,707.36,1.05764121]
[1735771007554,0.701,707.86,707.36,1.05764121]
[1735771007758,0.89268314,707.85,707.36,1.05764121]
[1735771008060,0.89268314,707.84,707.36,1.05764121]
[1735771008359,0.89268314,707.83,707.36,1.05764121]
[1735771008560,0.89268314,707.82,707.36,1.05764121]
[1735771008760,0.89268314,707.81,707.36,1.05764121]
[1735771008958,0.89268314,707.8,707.36,1.05764121]
[1735771009159,0.89268314,707.79,707.36,1.05764121]
[1735771009358,0.89268314,707.78,707.36,1.05764121]
[1735771009555,0.89268314,707.77,707.36,1.05764121]
[1735771009760,0.89268314,707.76,707.36,1.05764121]
[1735771009959,0.89268314,707.75,707.36,1.05764121]
[1735771010157,0.89268314,707.74,707.36,1.05764121]
[1735771010457,0.89268314,707.73,707.36,1.05764121]
[1735771010653,0.89261131,707.72,707.36,1.05764121]
[1735771010853,0.701,707.86,707.05,1.05764121]
[1735771010854,0.89261131,707.71,707.35,1.05764121]
[1735771011058,0.89261131,707.7,707.35,1.05764121]
[1735771011254,0.89261131,707.69,707.35,1.05764121]
[1735771011457,0.89261131,707.68,707.35,1.05764121]
[1735771011657,0.89261131,707.67,707.35,1.05764121]
[1735771011854,0.89261131,707.66,707.35,1.05764121]
[1735771012058,0.89261131,707.65,707.25,1.05764121]
[1735771012258,0.89261131,707.64,707.25,1.05764121]
[1735771012560,0.89261131,707.63,707.25,1.05764121]
[1735771012761,0.89261131,707.62,707.25,1.05764121]
[1735771013060,0.89261131,707.61,707.25,1.05764121]
[1735771013260,0.89261131,707.6,707.26,1.05764121]
[1735771013454,0.701,707.86,707.26,1.05764121]
[1735771013661,0.89281303,707.85,707.26,1.05764121]
[1735771013861,0.89281303,707.84,707.26,1.05764121]
[1735771014161,0.89281303,707.84,706.5,2.15935081]
[1735771014162,0.89281303,707.83,707.28,1.05764121]
[1735771014460,0.89281303,707.82,707.28,1.05764121]
[1735771014660,0.89281303,707.81,707.28,1.05764121]
[1735771014861,0.701,707.86,707.28,1.05764121]
[1735771014862,0.89281303,707.8,707.28,1.05764121]
[1735771015062,0.89281303,707.79,707.28,1.05764121]
[1735771015259,0.89281303,707.78,707.28,1.05764121]
[1735771015459,0.89281303,707.77,707.28,1.05764121]
[1735771015660,0.89281303,707.76,707.28,1.05764121]
[1735771015861,0.89281303,707.75,707.28,1.05764121]
[1735771016161,0.89281303,707.74,707.28,1.05764121]
[1735771016462,0.89288151,707.73,707.28,1.05764121]
[1735771016662,0.89288151,707.72,707.28,1.05764121]
[1735771016862,0.701,707.86,707.28,1.05764121]
[1735771017163,0.89291022,707.85,707.27,1.05764121]
[1735771017462,0.89291022,707.84,707.27,1.05764121]
[1735771017664,0.89291022,707.83,707.27,1.05764121]
[1735771017856,0.89291022,707.82,707.27,1.05764121]
[1735771018059,0.89291022,707.81,707.27,1.05764121]
[1735771018356,0.89291022,707.8,707.28,1.05764121]
[1735771018556,1.4757696,707.98,707.28,1.05764121]
[1735771018756,0.89292437,707.97,707.28,1.05764121]
[1735771018958,0.89292437,707.96,707.28,1.05764121]
[1735771019164,0.89292437,707.95,707.28,1.05764121]
[1735771019357,0.701,707.96,707.28,1.05764121]
[1735771019562,0.89293231,707.95,707.28,1.05764121]
[1735771019761,0.89293231,707.94,707.28,1.05764121]
[1735771019956,0.89293231,707.93,707.28,1.05764121]
[1735771020154,0.89293231,707.92,707.28,1.05764121]
[1735771020359,0.89293231,707.91,707.28,1.05764121]
[1735771020558,0.89293231,707.9,707.28,1.05764121]
[1735771020756,0.89293231,707.89,707.28,1.05764121]
[1735771020960,0.89293231,707.88,707.28,1.05764121]
[1735771021161,0.89293231,707.87,707.28,1.05764121]
[1735771021457,0.701,707.96,707.28,1.05764121]
[1735771021458,0.89293277,707.86,707.28,1.05764121]
[1735771021662,0.89293277,707.85,707.28,1.05764121]
[1735771021863,0.89293277,707.84,707.28,1.05764121]
[1735771022062,0.89293277,707.83,707.28,1.05764121]
[1735771022255,0.89293277,707.82,707.28,1.05764121]
[1735771022457,0.89293277,707.81,707.28,1.05764121]
[1735771022660,0.89293277,707.8,707.41,1.05764121]
[1735771022957,0.89293277,707.79,707.41,1.05764121]
[1735771023157,0.89293277,707.78,707.41,1.05764121]
[1735771023361,0.89293277,707.77,707.41,1.05764121]
[1735771023557,0.701,707.96,707.42,1.05764121]
[1735771023558,0.89293277,707.76,707.42,1.05764121]
[1735771023756,0.89293277,707.75,707.42,1.05764121]
[1735771023957,0.89293277,707.74,707.42,1.05764121]
[1735771024158,0.89293277,707.73,707.42,1.05764121]
[1735771024362,0.701,707.96,707.41,1.05764121]
[1735771024560,0.89294068,707.95,707.41,1.05764121]
[1735771024761,0.89294068,707.94,707.41,1.05764121]
[1735771024959,0.89294068,707.93,707.41,1.05764121]
[1735771025158,0.89294068,707.92,707.41,1.05764121]
[1735771025361,0.89294068,707.91,707.41,1.05764121]
[1735771025559,0.89294068,707.9,707.41,1.05764121]
[1735771025761,0.89294068,707.89,707.41,1.05764121]
[1735771025961,0.89294068,707.88,707.41,1.05764121]
[1735771026161,0.89294068,707.87,707.42,1.05764121]
[1735771026361,0.89294068,707.86,707.42,1.05764121]
[1735771026558,0.89294068,707.85,707.42,1.05764121]
[1735771026866,0.89294068,707.84,707.42,1.05764121]
[1735771027066,0.89294068,707.83,707.42,1.05764121]
[1735771027264,0.701,707.96,707.42,1.05764121]
[1735771027465,0.89279032,707.95,707.42,1.05764121]
[1735771027661,0.89279032,707.94,707.42,1.05764121]
[1735771027858,0.89279032,707.93,707.39,1.05764121]
[1735771028059,0.89279032,707.92,707.39,1.05764121]
[1735771028263,0.89279032,707.91,707.39,1.05764121]
[1735771028464,0.89279032,707.9,707.39,1.05764121]
[1735771028666,0.89279032,707.89,707.39,1.05764121]
[1735771028862,0.701,707.96,707.39,1.05764121]
[1735771028863,0.89279032,707.88,707.39,1.05764121]
[1735771029066,0.89279032,707.87,707.39,1.05764121]
[1735771029262,0.89279032,707.86,707.39,1.05764121]
[1735771029466,0.89279032,707.85,707.39,1.05764121]
[1735771029669,0.89279032,707.84,707.39,1.05764121]
[1735771029871,0.89279032,707.83,707.39,1.05764121]
[1735771030068,0.89279032,707.82,707.39,1.05764121]
[1735771030369,0.89247992,707.81,707.39,1.05764121]
[1735771030570,0.89247992,707.8,707.39,1.05764121]
[1735771030771,0.89247992,707.79,707.39,1.05764121]
[1735771030971,0.89247992,707.78,707.4,1.05764121]
[1735771031171,0.89247992,707.77,707.4,1.05764121]
[1735771031371,0.89247992,707.76,707.4,1.05764121]
[1735771031572,0.89247992,707.75,707.4,1.05764121]
[1735771031765,0.89247992,707.74,707.33,1.05764121]
[1735771031968,0.89247992,707.73,707.33,1.05764121]
[1735771032171,0.89247992,707.72,707.33,1.05764121]
[1735771032371,0.89247992,707.71,707.33,1.05764121]
[1735771032573,0.89247992,707.7,707.33,1.05764121]
[1735771032774,0.89247992,707.69,707.34,1.05764121]
[1735771032973,0.89247992,707.68,707.34,1.05764121]
[1735771033175,0.89270507,707.67,707.34,1.05764121]
[1735771033474,0.89270507,707.66,707.34,1.05764121]
[1735771033671,0.89270507,707.65,707.34,1.05764121]
[1735771033874,0.89270507,707.64,707.34,1.05764121]
[1735771034078,0.89270507,707.63,707.34,1.05764121]
[1735771034272,0.89270507,707.62,707.34,1.05764121]
[1735771034472,0.89270507,707.61,707.34,1.05764121]
[1735771034677,0.89270507,707.6,707.34,1.05764121]
[1735771034877,0.89270507,707.59,707.34,1.05764121]
[1735771035071,0.89270507,707.58,707.34,1.05764121]
[1735771035271,0.89270507,707.57,707.34,1.05764121]
[1735771035474,0.89270507,707.56,707.34,1.05764121]
[1735771035677,0.89270507,707.55,707.34,1.05764121]
[1735771035871,0.701,707.96,707.34,1.05764121]
[1735771036073,0.89263106,707.95,707.34,1.05764121]
[1735771036271,0.89261802,707.94,707.34,1.05764121]
[1735771036476,0.89261802,707.93,707.34,1.05764121]
[1735771036675,0.89261802,707.92,707.35,1.05764121]
[1735771036872,0.89261802,707.91,707.35,1.05764121]
[1735771037072,0.89261802,707.9,707.35,1.05764121]
[1735771037276,0.89261802,707.89,707.35,1.05764121]
[1735771037476,0.89261802,707.88,707.35,1.05764121]
[1735771037772,0.89261802,707.87,707.35,1.05764121]
[1735771037977,0.89261802,707.86,707.35,1.05764121]
[1735771038274,0.89261802,707.85,707.35,1.05764121]
[1735771038577,0.89261802,707.84,707.35,1.05764121]
[1735771038778,0.89261802,707.83,707.35,1.05764121]
[1735771038977,0.89261802,707.82,707.35,1.05764121]
[1735771039177,0.89243774,707.81,707.35,1.05764121]
[1735771039377,0.89243774,707.8,707.35,1.05764121]
[1735771039579,0.89243774,707.79,707.36,1.05764121]
[1735771039774,0.89243774,707.78,707.36,1.05764121]
[1735771040076,0.89243774,707.77,707.36,1.05764121]
[1735771040279,0.89243774,707.76,707.27,1.05764121]
[1735771040480,0.89243774,707.75,707.27,1.05764121]
[1735771040678,0.89243774,707.74,707.27,1.05764121]
[1735771040878,0.89243774,707.73,707.27,1.05764121]
[1735771041079,0.89243774,707.72,707.27,1.05764121]
[1735771041379,1.4757696,707.98,707.27,1.05764121]
[1735771041380,1.59443774,707.71,707.27,1.05764121]
[1735771041679,0.89243774,707.7,707.27,1.05764121]
[1735771041877,0.89243774,707.69,707.27,1.05764121]
[1735771042075,0.89243774,707.68,707.27,1.05764121]
[1735771042281,0.89243774,707.67,707.27,1.05764121]